bitfinex/quotes_SOLUSD_20240614
["timestamp","ask_amount","ask_price","bid_price","bid_amount"]
[1718353185289,15.9338,147.89,147.84,6.15]
[1718353186799,12.3876,147.88,147.8,0.836066]
[1718353187105,6.2376,147.88,147.83,6.15]
[1718353189112,6.2376,147.88,147.8,0.836066]
[1718353189419,6.2376,147.88,147.83,6.15]
[1718353190700,6.2376,147.88,147.8,0.836066]
[1718353190904,6.2376,147.88,147.83,6.15]
[1718353191297,12.3876,147.88,147.82,6.15]
[1718353193019,12.3876,147.88,147.83,6.15]
[1718353194110,6.2376,147.88,147.83,6.15]
[1718353196099,12.3876,147.88,147.82,6.15]
[1718353196919,12.3876,147.88,147.83,6.15]
[1718353197090,6.2376,147.88,147.83,6.15]
[1718353198609,6.2376,147.88,147.86,6.15]
[1718353199012,6.2376,147.88,147.85,6.15]
[1718353199798,6.2376,147.88,147.84,6.15]
[1718353199999,6.2376,147.88,147.8,0.836066]
[1718353200199,6.2376,147.88,147.83,6.15]
[1718353201121,6.2376,147.88,147.8,0.836066]
[1718353201122,12.3876,147.88,147.8,0.836066]
[1718353201330,6.15,147.87,147.82,6.15]
[1718353202304,12.3876,147.88,147.82,6.15]
[1718353202529,6.2376,147.88,147.83,6.15]
[1718353205218,12.3876,147.88,147.82,6.15]
[1718353206338,6.2376,147.88,147.83,6.15]
[1718353208207,6.3185,147.92,147.87,6.15]
[1718353208412,6.3185,147.92,147.84,6.15]
[1718353208413,6.3185,147.92,147.91,6.15]
[1718353208801,15.0231,147.94,147.91,6.15]
[1718353209007,15.0231,147.94,147.92,6.15]
[1718353210942,15.0231,147.94,147.91,6.15]
[1718353211735,15.0231,147.94,147.85,2.6724]
[1718353211937,15.0231,147.94,147.91,6.15]
[1718353212408,15.0231,147.94,147.83,17.9895]
[1718353212611,6.15,147.93,147.87,6.15]
[1718353213544,106.15,147.93,147.82,2.6729]
[1718353213711,106.15,147.93,147.87,6.15]
[1718353214833,6.15,147.93,147.87,6.15]
[1718353215137,106.15,147.93,147.87,6.15]
[1718353216138,6.66,147.92,147.86,6.15]
[1718353216354,6.1555,147.91,147.86,6.15]
[1718353217014,6.32,147.93,147.87,6.15]
[1718353217419,20.0,147.92,147.87,6.15]
[1718353217836,0.17,147.93,147.88,6.15]
[1718353218007,15.5331,147.94,147.89,6.15]
[1718353218008,15.0231,147.94,147.89,6.15]
[1718353218214,15.0231,147.94,147.9,6.15]
[1718353218433,15.0231,147.94,147.89,6.15]
[1718353218734,21.1731,147.94,147.89,6.15]
[1718353218941,15.0231,147.94,147.89,6.15]
[1718353220144,6.2264,147.93,147.89,6.15]
[1718353223230,6.2264,147.93,147.88,6.15]
[1718353223422,6.2264,147.93,147.89,6.15]
[1718353223621,6.2264,147.93,147.88,6.15]
[1718353223816,6.2264,147.93,147.81,20.71450259]
[1718353223817,0.17,147.92,147.81,8.19890259]
[1718353224063,0.17,147.92,147.85,6.15]
[1718353224064,6.15,147.91,147.85,6.15]
[1718353225847,0.17,147.9,147.85,6.15]
[1718353226055,20.17,147.9,147.85,6.15]
[1718353226232,26.32,147.9,147.84,6.15]
[1718353227150,24.82,147.9,147.84,6.15]
[1718353227816,24.82,147.9,147.8,0.836066]
[1718353227817,6.6383,147.88,147.8,0.836066]
[1718353228026,6.6383,147.88,147.82,6.15]
[1718353228027,6.15,147.87,147.82,6.15]
[1718353228818,6.6383,147.88,147.82,6.15]
[1718353231717,0.17,147.87,147.8,0.836066]
[1718353231921,0.68,147.87,147.8,0.836066]
[1718353232125,6.15,147.86,147.8,6.986066]
[1718353233551,65.68,147.87,147.8,6.986066]
[1718353233725,6.15,147.86,147.8,6.986066]
[1718353235636,26.15,147.87,147.8,0.836066]
[1718353235852,26.15,147.87,147.81,6.15]
[1718353236149,6.15,147.86,147.8,6.986066]
[1718353238023,6.15,147.84,147.8,0.836066]
[1718353240358,61.014,147.85,147.8,0.836066]
[1718353240630,26.32,147.84,147.8,0.836066]
[1718353241069,0.34,147.83,147.8,0.836066]
[1718353241239,12.3467,147.82,147.8,0.836066]
[1718353244959,6.1967,147.82,147.8,0.836066]
[1718353250648,12.3467,147.82,147.8,0.836066]
[1718353251948,6.1967,147.82,147.8,0.836066]
[1718353252154,12.3467,147.82,147.8,0.836066]
[1718353256176,6.1967,147.82,147.8,0.836066]
[1718353260178,0.34,147.83,147.8,0.836066]
[1718353260386,6.15,147.83,147.8,0.836066]
[1718353260686,21.6345,147.89,147.8,0.836066]
[1718353260868,15.4845,147.89,147.8,65.836066]
[1718353261071,15.4845,147.89,147.84,6.15]
[1718353261260,21.6345,147.89,147.83,6.15]
[1718353261673,6.15,147.85,147.8,0.836066]
[1718353262257,6.15,147.86,147.8,6.986066]
[1718353262658,20.0,147.85,147.8,6.986066]
[1718353262876,6.15,147.86,147.81,6.15]
[1718353263091,20.0,147.85,147.81,6.15]
[1718353263460,6.15,147.87,147.81,6.15]
[1718353263669,15.4845,147.89,147.8,0.836066]
[1718353263882,15.4845,147.89,147.84,6.15]
[1718353264264,16.5938,147.93,147.87,6.15]
[1718353264466,22.7438,147.93,147.87,6.15]
[1718353264680,16.5938,147.93,147.88,6.15]
[1718353265175,6.3464,147.94,147.89,6.15]
[1718353266664,16.4757,147.97,147.89,6.15]
[1718353266863,51.15,147.96,147.9,6.15]
[1718353267273,16.4757,147.97,147.9,6.15]
[1718353267569,16.4757,147.97,147.85,2.5025]
[1718353267570,6.4767,147.98,147.93,6.15]
[1718353267876,6.15,147.99,147.93,6.15]
[1718353268887,20.0,147.98,147.93,6.15]
[1718353269584,15.1588,148.01,147.93,6.15]
[1718353269771,45.0,148.0,147.93,1.15]
[1718353270086,6.15,147.97,147.92,6.15]
[1718353270296,6.15,147.97,147.91,6.15]
[1718353270592,0.51,147.98,147.91,6.15]
[1718353270781,6.15,147.96,147.91,6.15]
[1718353271593,6.15,147.96,147.88,20.0]
[1718353271762,6.15,147.95,147.89,6.15]
[1718353271963,6.15,147.95,147.86,16.229]
[1718353271964,45.17,147.94,147.86,16.229]
[1718353272160,45.17,147.94,147.83,6.367]
[1718353272161,6.15,147.92,147.83,6.367]
[1718353272364,6.15,147.92,147.86,6.15]
[1718353272558,16.0857,147.98,147.84,6.15]
[1718353272798,51.66,147.97,147.92,6.15]
[1718353274279,51.66,147.97,147.91,6.15]
[1718353274474,6.15,147.99,147.93,6.15]
[1718353274906,20.0,147.98,147.93,6.15]
[1718353277210,26.15,147.98,147.92,6.15]
[1718353277408,20.0,147.98,147.92,6.15]
[1718353277717,6.32,147.98,147.92,6.15]
[1718353278211,6.32,147.98,147.93,6.15]
[1718353279105,6.32,147.98,147.92,6.15]
[1718353280094,6.32,147.98,147.93,6.15]
[1718353280494,6.32,147.98,147.9,6.5661]
[1718353280699,0.33333333,147.97,147.93,6.15]
[1718353282325,0.33333333,147.97,147.9,6.5661]
[1718353282621,6.48333333,147.97,147.92,6.15]
[1718353282997,6.48333333,147.97,147.91,6.15]
[1718353283717,0.33333333,147.97,147.92,6.15]
[1718353284811,0.33333333,147.97,147.9,6.5661]
[1718353285016,0.33333333,147.97,147.94,6.15]
[1718353285217,0.33333333,147.97,147.95,6.15]
[1718353285829,0.33333333,147.97,147.96,6.15]
[1718353292832,0.33333333,147.97,147.91,44.6]
[1718353293008,0.33333333,147.97,147.95,6.15]
[1718353293926,0.33333333,147.97,147.96,6.15]
[1718353296226,0.33333333,147.97,147.96,26.15]
[1718353296529,0.33333333,147.97,147.96,71.15]
[1718353299505,0.33333333,147.97,147.96,65.0]
[1718353299724,0.33333333,147.97,147.96,20.0]
[1718353300048,0.33333333,147.97,147.96,26.15]
[1718353300205,0.33333333,147.97,147.96,20.0]
[1718353300404,0.33333333,147.97,147.96,26.15]
[1718353303637,0.33333333,147.97,147.96,71.15]
[1718353304231,0.33333333,147.97,147.96,73.8206]
[1718353304439,22.1047,148.06,147.98,2.5002]
[1718353304638,6.15,148.09,147.98,24.6]
[1718353304810,6.15,148.08,148.03,6.15]
[1718353305412,6.15,148.09,148.03,6.15]
[1718353305925,6.15,148.09,147.98,27.1002]
[1718353305926,20.0,148.08,148.04,6.15]
[1718353306709,26.15,148.09,148.04,6.15]
[1718353306851,20.0,148.09,148.04,6.15]
[1718353308115,26.15,148.09,148.03,6.15]
[1718353308321,26.15,148.09,148.02,6.15]
[1718353308322,6.15,148.08,148.02,6.15]
[1718353308522,20.0,148.09,148.02,6.15]
[1718353308750,20.0,148.09,147.98,24.6]
[1718353308751,20.0,148.09,148.04,6.15]
[1718353310148,20.0,148.09,148.05,6.15]
[1718353310447,27.9196,148.1,148.05,6.15]
[1718353310633,20.0,148.08,148.05,6.15]
[1718353310841,27.9196,148.1,148.05,6.15]
[1718353311048,20.0,148.09,148.05,6.15]
[1718353311717,20.0,148.09,148.01,15.3091]
[1718353311943,20.0,148.09,148.05,6.15]
[1718353312949,20.0,148.09,148.06,6.15]
[1718353313154,20.0,148.09,148.07,6.15]
[1718353313448,0.17,148.12,148.07,6.15]
[1718353313620,20.0,148.11,148.07,6.15]
[1718353314028,20.0,148.11,148.01,21.5796]
[1718353314229,20.0,148.11,148.06,6.15]
[1718353314651,20.0,148.11,148.01,21.5796]
[1718353314652,26.15,148.11,148.05,6.15]
[1718353314842,26.15,148.11,148.01,21.5796]
[1718353315151,6.15,148.1,148.05,6.15]
[1718353315345,20.0,148.11,148.02,20.0]
[1718353315655,26.15,148.11,148.06,6.15]
[1718353316933,26.15,148.11,148.05,6.15]
[1718353317653,6.32,148.1,148.02,20.0]
[1718353317958,51.66,148.09,148.03,6.15]
[1718353318190,71.66,148.09,148.03,6.15]
[1718353319236,65.51,148.09,148.03,6.15]
[1718353319435,71.66,148.09,148.03,6.15]
[1718353319953,0.17,148.08,147.98,24.6]
[1718353320247,0.17,148.06,147.97,31.29090259]
[1718353320578,65.68,148.06,147.97,16.6217]
[1718353320875,20.0,148.06,148.02,6.15]
[1718353321356,6.2371,148.08,147.98,6.15]
[1718353321559,20.0,148.07,148.03,6.15]
[1718353322155,20.0,148.07,147.99,20.0]
[1718353324233,0.17,148.06,147.98,24.6]
[1718353324433,51.66,148.06,148.0,6.15]
[1718353324854,6.15,148.03,147.93,14.27550259]
[1718353325062,20.0,148.02,147.97,6.15]
[1718353325279,15.6708,148.04,147.97,6.15]
[1718353325456,15.6708,148.04,147.93,16.77660259]
[1718353325457,65.0,148.03,147.98,6.15]
[1718353326049,20.0,148.03,147.98,6.15]
[1718353327082,20.0,148.03,147.93,14.27550259]
[1718353327248,15.6708,148.04,147.94,0.34]
[1718353327447,15.6708,148.04,148.0,6.15]
[1718353327948,15.6708,148.04,148.01,6.15]
[1718353328949,0.17,148.06,147.95,0.34]
[1718353329148,0.17,148.06,148.01,6.15]
[1718353329350,45.51,148.07,148.01,6.15]
[1718353329651,51.15,148.07,148.01,6.15]
[1718353330167,51.15,148.07,148.02,6.15]
[1718353330377,45.0,148.07,148.02,6.15]
[1718353330551,22.9337,148.08,148.03,6.15]
[1718353330754,22.7637,148.08,148.03,6.15]
[1718353331258,28.9137,148.08,148.03,6.15]
[1718353331577,6.15,148.07,148.02,6.15]
[1718353331779,28.9137,148.08,148.02,6.15]
[1718353332145,6.32,148.07,147.98,40.7057]
[1718353332349,6.49,148.07,147.99,20.0]
[1718353332551,45.17,148.06,148.01,6.15]
[1718353333259,45.0,148.06,148.01,6.15]
[1718353333569,6.49,148.07,148.01,6.15]
[1718353334458,0.34,148.07,148.01,6.15]
[1718353334661,51.49,148.07,148.01,6.15]
[1718353335285,22.7637,148.08,147.99,20.0]
[1718353335472,22.7637,148.08,148.03,6.15]
[1718353335781,16.5266,148.08,148.03,6.15]
[1718353336752,16.5266,148.08,147.99,26.5381]
[1718353336958,51.32,148.07,147.99,26.5381]
[1718353337184,6.32,148.06,147.98,16.1057]
[1718353337389,6.32,148.06,148.0,6.15]
[1718353337687,0.17,148.05,147.96,6.3143]
[1718353337885,6.15,148.04,147.98,6.15]
[1718353338254,6.15,148.01,147.93,15.93839544]
[1718353338488,6.15,148.0,147.94,6.15]
[1718353338980,0.17,148.01,147.94,6.15]
[1718353339178,45.17,148.01,147.94,6.15]
[1718353339961,45.17,148.01,147.95,6.15]
[1718353342279,15.5598,148.02,147.95,6.15]
[1718353342464,21.7098,148.02,147.96,6.15]
[1718353343364,6.15,148.0,147.92,6.3143]
[1718353343560,6.15,148.0,147.95,6.15]
[1718353344885,15.0498,148.02,147.98,6.15]
[1718353345069,16.1977,148.05,147.94,2.5009]
[1718353345268,6.15,148.04,147.99,6.15]
[1718353345468,6.15,148.04,147.98,6.15]
[1718353346692,6.15,148.04,147.94,2.501]
[1718353346693,45.0,148.03,147.93,20.17]
[1718353346993,0.17,148.04,147.98,6.15]
[1718353347195,51.83,148.04,147.98,6.15]
[1718353347563,16.1977,148.05,148.0,6.15]
[1718353349675,22.3477,148.05,148.0,6.15]
[1718353352771,22.3477,148.05,147.94,45.51]
[1718353352971,51.83,148.04,147.95,20.0]
[1718353353175,51.83,148.04,147.98,6.15]
[1718353353579,45.0,148.04,147.99,6.15]
[1718353354007,16.1977,148.05,147.99,6.15]
[1718353354182,16.1977,148.05,147.96,2.5006]
[1718353354183,22.3477,148.05,148.0,6.15]
[1718353355087,45.0,148.04,147.99,6.15]
[1718353356098,51.15,148.04,147.95,22.5008]
[1718353356411,51.15,148.04,147.98,6.15]
[1718353356576,51.15,148.04,147.99,6.15]
[1718353357601,51.15,148.04,147.95,20.0]
[1718353357776,51.15,148.04,147.99,6.15]
[1718353357977,45.0,148.04,147.95,22.5007]
[1718353358201,45.0,148.04,148.0,6.15]
[1718353358401,22.3477,148.05,148.0,6.15]
[1718353359406,16.1977,148.05,148.0,6.15]
[1718353359700,22.3477,148.05,148.0,6.15]
[1718353360112,16.1977,148.05,148.0,6.15]
[1718353363678,15.5363,148.09,148.02,6.15]
[1718353363923,21.6863,148.09,148.03,6.15]
[1718353364096,15.5363,148.09,148.04,6.15]
[1718353364293,15.5363,148.09,148.05,6.15]
[1718353368594,0.17,148.08,147.98,30.8037]
[1718353368793,51.83,148.08,148.03,6.15]
[1718353369307,51.83,148.08,148.02,6.15]
[1718353370396,45.68,148.08,148.03,6.15]
[1718353372016,6.15,148.06,147.96,32.1818]
[1718353372312,6.15,148.06,148.01,6.15]
[1718353372911,6.15,148.06,148.0,6.15]
[1718353374201,6.32,148.05,147.96,16.6455]
[1718353374529,6.32,148.05,148.0,6.15]
[1718353374736,6.32,148.05,147.96,16.6455]
[1718353375011,6.32,148.05,148.0,6.15]
[1718353379410,6.32,148.05,147.96,19.1461]
[1718353379411,6.32,148.05,147.96,16.6455]
[1718353379613,6.32,148.05,147.97,20.0]
[1718353380009,66.9153,148.04,147.95,1.17311076]
[1718353380214,66.9153,148.04,147.95,21.17311076]
[1718353380422,60.7653,148.04,147.98,6.15]
[1718353380601,66.9153,148.04,147.98,6.15]
[1718353382500,60.7653,148.04,147.98,6.15]
[1718353382802,66.9153,148.04,147.98,6.15]
[1718353383005,60.7653,148.04,147.99,6.15]
[1718353383234,15.2553,148.04,147.99,6.15]
[1718353385033,21.4053,148.04,147.99,6.15]
[1718353386935,21.4053,148.04,147.94,2.5009]
[1718353387117,21.4053,148.04,147.98,6.15]
[1718353388434,21.4053,148.04,147.94,47.5009]
[1718353388631,6.66,148.03,147.95,20.0]
[1718353388927,6.15,148.01,147.96,6.15]
[1718353389341,15.0651,147.99,147.92,1.1735862]
[1718353389552,21.2151,147.99,147.92,1.1735862]
[1718353389707,21.2151,147.99,147.93,6.15]
[1718353390210,21.2151,147.99,147.94,6.15]
[1718353391240,15.0651,147.99,147.94,6.15]
[1718353391631,15.0651,147.99,147.92,1.1735862]
[1718353391933,15.0651,147.99,147.92,21.1735862]
[1718353393515,21.2151,147.99,147.94,6.15]
[1718353394253,21.2151,147.99,147.92,21.1735862]
[1718353394422,21.2151,147.99,147.92,1.1735862]
[1718353394821,21.2151,147.99,147.94,6.15]
[1718353395143,21.2151,147.99,147.92,1.1735862]
[1718353395435,6.49,147.98,147.88,18.3645]
[1718353395633,51.49,147.98,147.9,1.17424498]
[1718353395809,51.49,147.98,147.92,6.15]
[1718353396009,51.49,147.98,147.9,1.17424498]
[1718353396205,51.49,147.98,147.92,6.15]
[1718353396519,45.34,147.98,147.93,6.15]
[1718353398139,15.0651,147.99,147.93,6.15]
[1718353398325,15.0651,147.99,147.95,6.15]
[1718353399240,15.0651,147.99,147.95,5.12360716]
[1718353400552,15.0651,147.99,147.91,6.15]
[1718353400853,21.2151,147.99,147.92,20.0]
[1718353401043,21.2151,147.99,147.94,6.15]
[1718353402439,15.0651,147.99,147.94,6.15]
[1718353402747,15.0651,147.99,147.95,6.15]
[1718353404350,15.0651,147.99,147.96,6.15]
[1718353404554,15.0651,147.99,147.97,6.15]
[1718353404878,15.0651,147.99,147.96,6.15]
[1718353406128,15.0651,147.99,147.92,20.0]
[1718353406855,15.0651,147.99,147.95,6.15]
[1718353407767,21.2151,147.99,147.92,20.0]
[1718353407941,45.51,147.98,147.9,1.17424498]
[1718353408139,51.66,147.98,147.9,1.17424498]
[1718353408339,51.66,147.98,147.92,6.15]
[1718353408549,51.66,147.98,147.9,1.17424498]
[1718353408756,51.66,147.98,147.92,6.15]
[1718353408957,51.66,147.98,147.93,6.15]
[1718353409453,45.34,147.98,147.93,6.15]
[1718353409658,6.15,147.98,147.93,6.15]
[1718353410163,21.2151,147.99,147.9,1.17424498]
[1718353410348,21.2151,147.99,147.93,6.15]
[1718353410838,21.2151,147.99,147.9,1.17424498]
[1718353411037,51.66,147.98,147.9,1.17424498]
[1718353411341,51.66,147.98,147.93,6.15]
[1718353411955,51.66,147.98,147.9,1.17424498]
[1718353412150,51.66,147.98,147.93,6.15]
[1718353412338,51.66,147.98,147.9,1.17424498]
[1718353412537,12.4572,147.97,147.9,1.17424498]
[1718353412765,12.4572,147.97,147.91,6.15]
[1718353412961,0.17,147.96,147.91,6.15]
[1718353413143,45.17,147.96,147.91,6.15]
[1718353413549,45.0,147.96,147.91,6.15]
[1718353413868,12.4572,147.97,147.91,6.15]
[1718353414165,12.4572,147.97,147.9,1.17424498]
[1718353414553,51.66,147.96,147.9,1.17424498]
[1718353414757,16.3289,147.94,147.84,47.46413081]
[1718353414946,16.3289,147.94,147.88,6.15]
[1718353414947,22.4789,147.94,147.88,6.15]
[1718353415972,22.4789,147.94,147.87,1.17330218]
[1718353416475,22.4789,147.94,147.88,6.15]
[1718353417038,22.4789,147.94,147.87,1.17330218]
[1718353417237,22.4789,147.94,147.88,6.15]
[1718353417483,16.3289,147.94,147.88,6.15]
[1718353417644,22.4789,147.94,147.88,6.15]
[1718353418149,22.4789,147.94,147.87,1.17330218]
[1718353418534,22.4789,147.94,147.88,6.15]
[1718353419165,22.4789,147.94,147.85,20.0]
[1718353419470,22.4789,147.94,147.86,1.1730601]
[1718353419873,6.084,147.92,147.85,20.0]
[1718353420063,12.234,147.92,147.84,20.0]
[1718353420247,12.234,147.92,147.87,6.15]
[1718353420437,12.234,147.92,147.86,6.15]
[1718353420646,6.15,147.9,147.81,2.5032]
[1718353420849,6.15,147.9,147.84,6.15]
[1718353421045,16.9494,147.91,147.85,6.15]
[1718353421265,16.4394,147.91,147.81,5.0062]
[1718353421453,16.4394,147.91,147.81,15.93829164]
[1718353421661,16.4394,147.91,147.87,6.15]
[1718353421859,16.4394,147.91,147.82,2.503]
[1718353422060,22.5894,147.91,147.86,6.15]
[1718353422244,22.5894,147.91,147.85,6.15]
[1718353422442,6.15,147.9,147.81,35.93829164]
[1718353422744,16.4394,147.91,147.86,6.15]
[1718353423073,22.5894,147.91,147.86,6.15]
[1718353423255,16.4394,147.91,147.86,6.15]
[1718353423450,22.5894,147.91,147.86,6.15]
[1718353423863,16.4394,147.91,147.86,6.15]
[1718353424377,22.5894,147.91,147.86,6.15]
[1718353424750,16.4394,147.91,147.86,6.15]
[1718353426861,16.4394,147.91,147.88,6.15]
[1718353427183,15.8024,147.95,147.9,6.15]
[1718353427480,15.8024,147.95,147.91,6.15]
[1718353428182,15.8024,147.95,147.93,6.15]
[1718353430879,6.4729,147.96,147.93,6.15]
[1718353431378,6.4729,147.96,147.94,6.15]
[1718353432551,6.4729,147.96,147.88,2.5019]
[1718353432849,6.4729,147.96,147.94,6.15]
[1718353433049,15.3422,147.99,147.95,6.15]
[1718353435185,15.3422,147.99,147.94,6.15]
[1718353436060,0.17,147.98,147.91,6.15]
[1718353436286,45.68,147.98,147.93,6.15]
[1718353436473,45.51,147.98,147.94,6.15]
[1718353436663,45.17,147.98,147.94,6.15]
[1718353437080,21.4922,147.99,147.94,6.15]
[1718353437081,15.3422,147.99,147.94,6.15]
[1718353437459,15.3422,147.99,147.91,6.15]
[1718353437660,15.3422,147.99,147.95,6.15]
[1718353438513,45.34,147.98,147.85,31.55609164]
[1718353438800,6.5038,147.95,147.9,6.15]
[1718353440282,6.5038,147.95,147.91,6.15]
[1718353440508,6.5038,147.95,147.93,6.15]
[1718353441101,6.5038,147.95,147.87,2.5021]
[1718353441306,6.5038,147.95,147.92,6.15]
[1718353442021,6.5038,147.95,147.93,6.15]
[1718353442599,6.5038,147.95,147.94,6.15]
[1718353442799,6.5038,147.95,147.93,6.15]
[1718353443717,6.5038,147.95,147.92,6.15]
[1718353445605,27.6482,147.99,147.94,6.15]
[1718353445806,21.4982,147.99,147.94,6.15]
[1718353446013,21.4982,147.99,147.95,6.15]
[1718353447886,21.4982,147.99,147.96,6.15]
[1718353450105,21.4982,147.99,147.97,6.15]
[1718353451391,15.4799,148.02,147.98,6.15]
[1718353451614,15.4799,148.02,147.99,6.15]
[1718353451821,6.0527,148.03,147.97,2.5005]
[1718353452012,15.4799,148.06,148.02,6.15]
[1718353452317,15.4799,148.06,148.03,6.15]
[1718353455403,15.4799,148.06,148.02,6.15]
[1718353457121,15.4799,148.06,148.01,6.15]
[1718353457309,21.6299,148.06,148.01,6.15]
[1718353457848,15.4799,148.06,148.01,6.15]
[1718353458311,15.4799,148.06,148.02,6.15]
[1718353459736,15.4799,148.06,148.03,6.15]
[1718353460725,21.7776,148.12,148.05,6.15]
[1718353461035,6.15,148.11,148.06,6.15]
[1718353461912,21.7776,148.12,148.06,6.15]
[1718353462219,6.15,148.11,148.06,6.15]
[1718353464731,6.15,148.11,148.01,2.4996]
[1718353465037,6.15,148.11,148.05,6.15]
[1718353465833,6.15,148.11,148.06,6.15]
[1718353466513,6.15,148.11,148.05,6.15]
[1718353467811,6.15,148.11,148.06,6.15]
[1718353470332,6.15,148.11,148.05,6.15]
[1718353471909,6.15,148.08,148.0,6.15]
[1718353472113,45.68,148.1,148.02,6.15]
[1718353472311,6.15,148.07,148.02,6.15]
[1718353472535,6.15,148.08,148.02,6.15]
[1718353472925,6.15,148.08,148.03,6.15]
[1718353473415,45.68,148.1,148.03,6.15]
[1718353473615,6.15,148.09,148.03,6.15]
[1718353476924,0.17,148.06,147.97,6.15]
[1718353477127,6.15,148.05,147.96,16.3336]
[1718353477331,6.32,148.06,148.01,6.15]
[1718353477844,6.32,148.07,148.01,6.15]
[1718353478051,65.0,148.06,148.01,6.15]
[1718353478427,20.0,148.06,148.01,6.15]
[1718353479620,20.0,148.06,148.02,6.15]
[1718353480022,29.2637,148.08,148.02,6.15]
[1718353480023,20.0,148.07,148.02,6.15]
[1718353480456,22.6037,148.08,147.98,6.15]
[1718353480645,22.6037,148.08,148.05,6.15]
[1718353482552,22.043,148.12,148.07,6.15]
[1718353482756,22.043,148.12,148.02,16.6303]
[1718353482939,22.043,148.12,148.09,6.15]
[1718353483122,21.6314,148.16,148.05,6.15]
[1718353483324,21.6314,148.16,148.1,6.15]
[1718353483528,6.15,148.15,148.05,24.6]
[1718353483829,21.6314,148.16,148.1,6.15]
[1718353484766,121.6314,148.16,148.09,6.15]
[1718353485057,45.68,148.15,148.09,6.15]
[1718353488356,45.0,148.15,148.09,6.15]
[1718353488531,121.6314,148.16,148.09,6.15]
[1718353489534,21.6314,148.16,148.05,24.6]
[1718353489761,21.6314,148.16,148.11,6.15]
[1718353489934,27.7814,148.16,148.11,6.15]
[1718353490364,27.7814,148.16,148.1,6.15]
[1718353493441,51.32,148.15,148.09,6.15]
[1718353498499,45.17,148.15,148.09,6.15]
[1718353499797,45.17,148.15,148.1,6.15]
[1718353503365,45.17,148.15,148.11,6.15]
[1718353503686,45.17,148.15,148.1,6.15]
[1718353505168,51.32,148.15,148.06,2.4988]
[1718353505387,51.32,148.15,148.1,6.15]
[1718353507168,51.32,148.15,148.09,6.15]
[1718353507474,6.15,148.14,148.09,6.15]
[1718353509292,6.15,148.14,148.08,6.15]
[1718353514490,45.68,148.15,148.08,6.15]
[1718353514688,0.51,148.14,148.09,6.15]